Workbook

Sheet Settings
D2: Surcharge
B3: Hourly costs | C3: 150.00
B4: Hourly revenue | C4: =+C3*1.03 -> 154.50 | D4: =+C4/C3-1 -> 3.0%
B6: Material overhead costs | C6: 3%
B7: Material overhead revenue | C7: 5% | D7: =+(C7-C6)/(1+C7) -> 1.9%

Sheet Projects
B2: Projects | C2: Progress | D2: In Time | E2: Status | F2: Planned Start | G2: Planned End | H2: FC/A Start | I2: FC/A End | J2: Planned Hours | K2: FC Hours | L2: Actual Hours | M2: Planned Costs | N2: FC Costs | O2: Actual Costs | P2: Planned Revenue | Q2: FC Revenue | R2: Actual Revenue | S2: Planned Profit | T2: FC Profic | U2: Actual Profit
B3: Project 1 | C3: =+INDIRECT("'"&$B3&"'!C6") -> 0% | D3: =+IFERROR(C3/INDIRECT("'"&$B3&"'!E6"), 1)-1 -> 0% | E3: =+INDIRECT("'"&$B3&"'!C7") -> Active | F3: =+INDIRECT("'"&$B3&"'!C11") -> 2023-02-01 | G3: =+INDIRECT("'"&$B3&"'!C12") -> 00:00:00 | H3: =+INDIRECT("'"&$B3&"'!E11") -> 2023-02-01 | I3: =+INDIRECT("'"&$B3&"'!E12") -> 00:00:00 | J3: =+INDIRECT("'"&$B3&"'!C13") -> 20 | K3: =+INDIRECT("'"&$B3&"'!E13") -> 15 | L3: =+INDIRECT("'"&$B3&"'!G13") -> 10 | M3: =+INDIRECT("'"&$B3&"'!C14") -> 3309 | N3: =+INDIRECT("'"&$B3&"'!E14") -> 2353 | O3: =+INDIRECT("'"&$B3&"'!G14") -> 1553 | P3: =+INDIRECT("'"&$B3&"'!C15") -> 3195 | Q3: =+INDIRECT("'"&$B3&"'!E15") -> 2396 | R3: =+INDIRECT("'"&$B3&"'!G15") -> 1598 | S3: =+INDIRECT("'"&$B3&"'!C9") -> -114 | T3: =+INDIRECT("'"&$B3&"'!E9") -> 43 | U3: =+INDIRECT("'"&$B3&"'!G9") -> 45
B4: Project 2 | C4: =+INDIRECT("'"&$B4&"'!C6") -> 0% | D4: =+IFERROR(C4/INDIRECT("'"&$B4&"'!E6"), 1)-1 -> 0% | E4: =+INDIRECT("'"&$B4&"'!C7") -> Active | F4: =+INDIRECT("'"&$B4&"'!C11") -> 2023-02-01 | G4: =+INDIRECT("'"&$B4&"'!C12") -> 00:00:00 | H4: =+INDIRECT("'"&$B4&"'!E11") -> 2023-02-01 | I4: =+INDIRECT("'"&$B4&"'!E12") -> 00:00:00 | J4: =+INDIRECT("'"&$B4&"'!C13") -> 0 | K4: =+INDIRECT("'"&$B4&"'!E13") -> 0 | L4: =+INDIRECT("'"&$B4&"'!G13") -> 0 | M4: =+INDIRECT("'"&$B4&"'!C14") -> 0 | N4: =+INDIRECT("'"&$B4&"'!E14") -> 0 | O4: =+INDIRECT("'"&$B4&"'!G14") -> 0 | P4: =+INDIRECT("'"&$B4&"'!C15") -> 0 | Q4: =+INDIRECT("'"&$B4&"'!E15") -> 0 | R4: =+INDIRECT("'"&$B4&"'!G15") -> 0 | S4: =+INDIRECT("'"&$B4&"'!C9") -> 0 | T4: =+INDIRECT("'"&$B4&"'!E9") -> 0 | U4: =+INDIRECT("'"&$B4&"'!G9") -> 0
B5: Project 3 | C5: =+INDIRECT("'"&$B5&"'!C6") -> 0% | D5: =+IFERROR(C5/INDIRECT("'"&$B5&"'!E6"), 1)-1 -> 0% | E5: =+INDIRECT("'"&$B5&"'!C7") -> Active | F5: =+INDIRECT("'"&$B5&"'!C11") -> 2023-02-01 | G5: =+INDIRECT("'"&$B5&"'!C12") -> 00:00:00 | H5: =+INDIRECT("'"&$B5&"'!E11") -> 2023-02-01 | I5: =+INDIRECT("'"&$B5&"'!E12") -> 00:00:00 | J5: =+INDIRECT("'"&$B5&"'!C13") -> 0 | K5: =+INDIRECT("'"&$B5&"'!E13") -> 0 | L5: =+INDIRECT("'"&$B5&"'!G13") -> 0 | M5: =+INDIRECT("'"&$B5&"'!C14") -> 0 | N5: =+INDIRECT("'"&$B5&"'!E14") -> 0 | O5: =+INDIRECT("'"&$B5&"'!G14") -> 0 | P5: =+INDIRECT("'"&$B5&"'!C15") -> 0 | Q5: =+INDIRECT("'"&$B5&"'!E15") -> 0 | R5: =+INDIRECT("'"&$B5&"'!G15") -> 0 | S5: =+INDIRECT("'"&$B5&"'!C9") -> 0 | T5: =+INDIRECT("'"&$B5&"'!E9") -> 0 | U5: =+INDIRECT("'"&$B5&"'!G9") -> 0
B6: Project 4 | C6: =+INDIRECT("'"&$B6&"'!C6") -> 0% | D6: =+IFERROR(C6/INDIRECT("'"&$B6&"'!E6"), 1)-1 -> 0% | E6: =+INDIRECT("'"&$B6&"'!C7") -> Active | F6: =+INDIRECT("'"&$B6&"'!C11") -> 2023-02-01 | G6: =+INDIRECT("'"&$B6&"'!C12") -> 00:00:00 | H6: =+INDIRECT("'"&$B6&"'!E11") -> 2023-02-01 | I6: =+INDIRECT("'"&$B6&"'!E12") -> 00:00:00 | J6: =+INDIRECT("'"&$B6&"'!C13") -> 0 | K6: =+INDIRECT("'"&$B6&"'!E13") -> 0 | L6: =+INDIRECT("'"&$B6&"'!G13") -> 0 | M6: =+INDIRECT("'"&$B6&"'!C14") -> 0 | N6: =+INDIRECT("'"&$B6&"'!E14") -> 0 | O6: =+INDIRECT("'"&$B6&"'!G14") -> 0 | P6: =+INDIRECT("'"&$B6&"'!C15") -> 0 | Q6: =+INDIRECT("'"&$B6&"'!E15") -> 0 | R6: =+INDIRECT("'"&$B6&"'!G15") -> 0 | S6: =+INDIRECT("'"&$B6&"'!C9") -> 0 | T6: =+INDIRECT("'"&$B6&"'!E9") -> 0 | U6: =+INDIRECT("'"&$B6&"'!G9") -> 0
B7: Project 5 | C7: =+INDIRECT("'"&$B7&"'!C6") -> 0% | D7: =+IFERROR(C7/INDIRECT("'"&$B7&"'!E6"), 1)-1 -> 0% | E7: =+INDIRECT("'"&$B7&"'!C7") -> Active | F7: =+INDIRECT("'"&$B7&"'!C11") -> 2023-02-01 | G7: =+INDIRECT("'"&$B7&"'!C12") -> 00:00:00 | H7: =+INDIRECT("'"&$B7&"'!E11") -> 2023-02-01 | I7: =+INDIRECT("'"&$B7&"'!E12") -> 00:00:00 | J7: =+INDIRECT("'"&$B7&"'!C13") -> 0 | K7: =+INDIRECT("'"&$B7&"'!E13") -> 0 | L7: =+INDIRECT("'"&$B7&"'!G13") -> 0 | M7: =+INDIRECT("'"&$B7&"'!C14") -> 0 | N7: =+INDIRECT("'"&$B7&"'!E14") -> 0 | O7: =+INDIRECT("'"&$B7&"'!G14") -> 0 | P7: =+INDIRECT("'"&$B7&"'!C15") -> 0 | Q7: =+INDIRECT("'"&$B7&"'!E15") -> 0 | R7: =+INDIRECT("'"&$B7&"'!G15") -> 0 | S7: =+INDIRECT("'"&$B7&"'!C9") -> 0 | T7: =+INDIRECT("'"&$B7&"'!E9") -> 0 | U7: =+INDIRECT("'"&$B7&"'!G9") -> 0
B8: Project 6 | C8: =+INDIRECT("'"&$B8&"'!C6") -> 0% | D8: =+IFERROR(C8/INDIRECT("'"&$B8&"'!E6"), 1)-1 -> 0% | E8: =+INDIRECT("'"&$B8&"'!C7") -> Active | F8: =+INDIRECT("'"&$B8&"'!C11") -> 2023-02-01 | G8: =+INDIRECT("'"&$B8&"'!C12") -> 00:00:00 | H8: =+INDIRECT("'"&$B8&"'!E11") -> 2023-02-01 | I8: =+INDIRECT("'"&$B8&"'!E12") -> 00:00:00 | J8: =+INDIRECT("'"&$B8&"'!C13") -> 0 | K8: =+INDIRECT("'"&$B8&"'!E13") -> 0 | L8: =+INDIRECT("'"&$B8&"'!G13") -> 0 | M8: =+INDIRECT("'"&$B8&"'!C14") -> 0 | N8: =+INDIRECT("'"&$B8&"'!E14") -> 0 | O8: =+INDIRECT("'"&$B8&"'!G14") -> 0 | P8: =+INDIRECT("'"&$B8&"'!C15") -> 0 | Q8: =+INDIRECT("'"&$B8&"'!E15") -> 0 | R8: =+INDIRECT("'"&$B8&"'!G15") -> 0 | S8: =+INDIRECT("'"&$B8&"'!C9") -> 0 | T8: =+INDIRECT("'"&$B8&"'!E9") -> 0 | U8: =+INDIRECT("'"&$B8&"'!G9") -> 0
B9: Project 7 | C9: =+INDIRECT("'"&$B9&"'!C6") -> 0% | D9: =+IFERROR(C9/INDIRECT("'"&$B9&"'!E6"), 1)-1 -> 0% | E9: =+INDIRECT("'"&$B9&"'!C7") -> Active | F9: =+INDIRECT("'"&$B9&"'!C11") -> 2023-02-01 | G9: =+INDIRECT("'"&$B9&"'!C12") -> 00:00:00 | H9: =+INDIRECT("'"&$B9&"'!E11") -> 2023-02-01 | I9: =+INDIRECT("'"&$B9&"'!E12") -> 00:00:00 | J9: =+INDIRECT("'"&$B9&"'!C13") -> 0 | K9: =+INDIRECT("'"&$B9&"'!E13") -> 0 | L9: =+INDIRECT("'"&$B9&"'!G13") -> 0 | M9: =+INDIRECT("'"&$B9&"'!C14") -> 0 | N9: =+INDIRECT("'"&$B9&"'!E14") -> 0 | O9: =+INDIRECT("'"&$B9&"'!G14") -> 0 | P9: =+INDIRECT("'"&$B9&"'!C15") -> 0 | Q9: =+INDIRECT("'"&$B9&"'!E15") -> 0 | R9: =+INDIRECT("'"&$B9&"'!G15") -> 0 | S9: =+INDIRECT("'"&$B9&"'!C9") -> 0 | T9: =+INDIRECT("'"&$B9&"'!E9") -> 0 | U9: =+INDIRECT("'"&$B9&"'!G9") -> 0
B10: Project 8 | C10: =+INDIRECT("'"&$B10&"'!C6") -> 0% | D10: =+IFERROR(C10/INDIRECT("'"&$B10&"'!E6"), 1)-1 -> 0% | E10: =+INDIRECT("'"&$B10&"'!C7") -> Active | F10: =+INDIRECT("'"&$B10&"'!C11") -> 2023-02-01 | G10: =+INDIRECT("'"&$B10&"'!C12") -> 00:00:00 | H10: =+INDIRECT("'"&$B10&"'!E11") -> 2023-02-01 | I10: =+INDIRECT("'"&$B10&"'!E12") -> 00:00:00 | J10: =+INDIRECT("'"&$B10&"'!C13") -> 0 | K10: =+INDIRECT("'"&$B10&"'!E13") -> 0 | L10: =+INDIRECT("'"&$B10&"'!G13") -> 0 | M10: =+INDIRECT("'"&$B10&"'!C14") -> 0 | N10: =+INDIRECT("'"&$B10&"'!E14") -> 0 | O10: =+INDIRECT("'"&$B10&"'!G14") -> 0 | P10: =+INDIRECT("'"&$B10&"'!C15") -> 0 | Q10: =+INDIRECT("'"&$B10&"'!E15") -> 0 | R10: =+INDIRECT("'"&$B10&"'!G15") -> 0 | S10: =+INDIRECT("'"&$B10&"'!C9") -> 0 | T10: =+INDIRECT("'"&$B10&"'!E9") -> 0 | U10: =+INDIRECT("'"&$B10&"'!G9") -> 0
B11: Project 9 | C11: =+INDIRECT("'"&$B11&"'!C6") -> 0% | D11: =+IFERROR(C11/INDIRECT("'"&$B11&"'!E6"), 1)-1 -> 0% | E11: =+INDIRECT("'"&$B11&"'!C7") -> Active | F11: =+INDIRECT("'"&$B11&"'!C11") -> 2023-02-01 | G11: =+INDIRECT("'"&$B11&"'!C12") -> 00:00:00 | H11: =+INDIRECT("'"&$B11&"'!E11") -> 2023-02-01 | I11: =+INDIRECT("'"&$B11&"'!E12") -> 00:00:00 | J11: =+INDIRECT("'"&$B11&"'!C13") -> 0 | K11: =+INDIRECT("'"&$B11&"'!E13") -> 0 | L11: =+INDIRECT("'"&$B11&"'!G13") -> 0 | M11: =+INDIRECT("'"&$B11&"'!C14") -> 0 | N11: =+INDIRECT("'"&$B11&"'!E14") -> 0 | O11: =+INDIRECT("'"&$B11&"'!G14") -> 0 | P11: =+INDIRECT("'"&$B11&"'!C15") -> 0 | Q11: =+INDIRECT("'"&$B11&"'!E15") -> 0 | R11: =+INDIRECT("'"&$B11&"'!G15") -> 0 | S11: =+INDIRECT("'"&$B11&"'!C9") -> 0 | T11: =+INDIRECT("'"&$B11&"'!E9") -> 0 | U11: =+INDIRECT("'"&$B11&"'!G9") -> 0

Sheet People
B2: Person | C2: Available Hours | D2: Planned Hours | E2: FC Hours | F2: Actual Hours | H2: B Utilization | I2: FC Utilization | J2: A Utilization | L2: Error
B3: Name 1 | C3: =+(250-30-10)*8 -> 1680 | D3: =SUMPRODUCT(SUMIF(INDIRECT("'"&Sheets&"'!"&"C18:C1000"),$B3,INDIRECT("'"&Sheets&"'!H18:H1000"))) -> 0 | E3: =SUMPRODUCT(SUMIF(INDIRECT("'"&Sheets&"'!"&"C18:C1000"),$B3,INDIRECT("'"&Sheets&"'!I18:I1000"))) -> 0 | F3: =SUMPRODUCT(SUMIF(INDIRECT("'"&Sheets&"'!"&"C18:C1000"),$B3,INDIRECT("'"&Sheets&"'!J18:J1000"))) -> 0 | H3: =+D3/C3 -> 0.0% | I3: =+E3/C3 -> 0.0% | J3: =+F3/C3 -> 0.0% | L3: =+IF(OR(D3>C3,E3>C3,F3>C3),0,1) -> 1
B4: Name 2 | C4: =+(250-30-10)*8 -> 1680 | D4: =SUMPRODUCT(SUMIF(INDIRECT("'"&Sheets&"'!"&"C18:C1000"),$B4,INDIRECT("'"&Sheets&"'!H18:H1000"))) -> 20 | E4: =SUMPRODUCT(SUMIF(INDIRECT("'"&Sheets&"'!"&"C18:C1000"),$B4,INDIRECT("'"&Sheets&"'!I18:I1000"))) -> 15 | F4: =SUMPRODUCT(SUMIF(INDIRECT("'"&Sheets&"'!"&"C18:C1000"),$B4,INDIRECT("'"&Sheets&"'!J18:J1000"))) -> 10 | H4: =+D4/C4 -> 1.2% | I4: =+E4/C4 -> 0.9% | J4: =+F4/C4 -> 0.6% | L4: =+IF(OR(D4>C4,E4>C4,F4>C4),0,1) -> 1
B5: Name 3 | C5: 1680 | D5: =SUMPRODUCT(SUMIF(INDIRECT("'"&Sheets&"'!"&"C18:C1000"),$B5,INDIRECT("'"&Sheets&"'!H18:H1000"))) -> 0 | E5: =SUMPRODUCT(SUMIF(INDIRECT("'"&Sheets&"'!"&"C18:C1000"),$B5,INDIRECT("'"&Sheets&"'!I18:I1000"))) -> 0 | F5: =SUMPRODUCT(SUMIF(INDIRECT("'"&Sheets&"'!"&"C18:C1000"),$B5,INDIRECT("'"&Sheets&"'!J18:J1000"))) -> 0 | H5: 0.0% | I5: 0.0% | J5: 0.0% | L5: 1
B6: Name 4 | C6: 1680 | D6: =SUMPRODUCT(SUMIF(INDIRECT("'"&Sheets&"'!"&"C18:C1000"),$B6,INDIRECT("'"&Sheets&"'!H18:H1000"))) -> 0 | E6: =SUMPRODUCT(SUMIF(INDIRECT("'"&Sheets&"'!"&"C18:C1000"),$B6,INDIRECT("'"&Sheets&"'!I18:I1000"))) -> 0 | F6: =SUMPRODUCT(SUMIF(INDIRECT("'"&Sheets&"'!"&"C18:C1000"),$B6,INDIRECT("'"&Sheets&"'!J18:J1000"))) -> 0 | H6: 0.0% | I6: 0.0% | J6: 0.0% | L6: 1
B7: Name 5 | C7: 1680 | D7: =SUMPRODUCT(SUMIF(INDIRECT("'"&Sheets&"'!"&"C18:C1000"),$B7,INDIRECT("'"&Sheets&"'!H18:H1000"))) -> 0 | E7: =SUMPRODUCT(SUMIF(INDIRECT("'"&Sheets&"'!"&"C18:C1000"),$B7,INDIRECT("'"&Sheets&"'!I18:I1000"))) -> 0 | F7: =SUMPRODUCT(SUMIF(INDIRECT("'"&Sheets&"'!"&"C18:C1000"),$B7,INDIRECT("'"&Sheets&"'!J18:J1000"))) -> 0 | H7: 0.0% | I7: 0.0% | J7: 0.0% | L7: 1
B8: Name 6 | C8: 1680 | D8: =SUMPRODUCT(SUMIF(INDIRECT("'"&Sheets&"'!"&"C18:C1000"),$B8,INDIRECT("'"&Sheets&"'!H18:H1000"))) -> 0 | E8: =SUMPRODUCT(SUMIF(INDIRECT("'"&Sheets&"'!"&"C18:C1000"),$B8,INDIRECT("'"&Sheets&"'!I18:I1000"))) -> 0 | F8: =SUMPRODUCT(SUMIF(INDIRECT("'"&Sheets&"'!"&"C18:C1000"),$B8,INDIRECT("'"&Sheets&"'!J18:J1000"))) -> 0 | H8: 0.0% | I8: 0.0% | J8: 0.0% | L8: 1
B9: Name 7 | C9: 1680 | D9: =SUMPRODUCT(SUMIF(INDIRECT("'"&Sheets&"'!"&"C18:C1000"),$B9,INDIRECT("'"&Sheets&"'!H18:H1000"))) -> 0 | E9: =SUMPRODUCT(SUMIF(INDIRECT("'"&Sheets&"'!"&"C18:C1000"),$B9,INDIRECT("'"&Sheets&"'!I18:I1000"))) -> 0 | F9: =SUMPRODUCT(SUMIF(INDIRECT("'"&Sheets&"'!"&"C18:C1000"),$B9,INDIRECT("'"&Sheets&"'!J18:J1000"))) -> 0 | H9: 0.0% | I9: 0.0% | J9: 0.0% | L9: 1
B10: Name 8 | C10: 1680 | D10: =SUMPRODUCT(SUMIF(INDIRECT("'"&Sheets&"'!"&"C18:C1000"),$B10,INDIRECT("'"&Sheets&"'!H18:H1000"))) -> 0 | E10: =SUMPRODUCT(SUMIF(INDIRECT("'"&Sheets&"'!"&"C18:C1000"),$B10,INDIRECT("'"&Sheets&"'!I18:I1000"))) -> 0 | F10: =SUMPRODUCT(SUMIF(INDIRECT("'"&Sheets&"'!"&"C18:C1000"),$B10,INDIRECT("'"&Sheets&"'!J18:J1000"))) -> 0 | H10: 0.0% | I10: 0.0% | J10: 0.0% | L10: 1
B11: Name 9 | C11: 1680 | D11: =SUMPRODUCT(SUMIF(INDIRECT("'"&Sheets&"'!"&"C18:C1000"),$B11,INDIRECT("'"&Sheets&"'!H18:H1000"))) -> 0 | E11: =SUMPRODUCT(SUMIF(INDIRECT("'"&Sheets&"'!"&"C18:C1000"),$B11,INDIRECT("'"&Sheets&"'!I18:I1000"))) -> 0 | F11: =SUMPRODUCT(SUMIF(INDIRECT("'"&Sheets&"'!"&"C18:C1000"),$B11,INDIRECT("'"&Sheets&"'!J18:J1000"))) -> 0 | H11: 0.0% | I11: 0.0% | J11: 0.0% | L11: 1
B12: Name 10 | C12: 1680 | D12: =SUMPRODUCT(SUMIF(INDIRECT("'"&Sheets&"'!"&"C18:C1000"),$B12,INDIRECT("'"&Sheets&"'!H18:H1000"))) -> 0 | E12: =SUMPRODUCT(SUMIF(INDIRECT("'"&Sheets&"'!"&"C18:C1000"),$B12,INDIRECT("'"&Sheets&"'!I18:I1000"))) -> 0 | F12: =SUMPRODUCT(SUMIF(INDIRECT("'"&Sheets&"'!"&"C18:C1000"),$B12,INDIRECT("'"&Sheets&"'!J18:J1000"))) -> 0 | H12: 0.0% | I12: 0.0% | J12: 0.0% | L12: 1

Sheet Project 1
B2: Name
B3: Description
B4: Responsible
B5: Receiver
B6: Progress | C6: =+IF(NOW()-E11<0, 0, IF((E12-E11)/(NOW()-E11)>1, 1, (E12-E11)/(NOW()-E11))) -> 0% | E6: =+IF(NOW()-C11<0, 0, IF((C12-C11)/(NOW()-C11)>1, 1, (C12-C11)/(NOW()-C11))) -> 0%
B7: Status | C7: Active
B9: Planned Profit | C9: =+C15-C14 -> (114.00) | D9: FC Profit | E9: =+E15-E14 -> 43.25 | F9: Actual Profi | G9: =+G15-G14 -> 45.00
B11: Planned Start | C11: =+D19 -> 2023-02-01 | D11: =+F17 -> FC/A Start | E11: =+F19 -> 2023-02-01
B12: Planned End | C12: =+E41 -> 00:00:00 | D12: =+G17 -> FC/A End | E12: =+G41 -> 00:00:00
B13: Planned Hours | C13: =+H19+H28+H34+H41 -> 20 | D13: FC Hours | E13: =+I19+I28+I34+I41 -> 15 | F13: Actual Hours | G13: =+J19+J28+J34+J41 -> 10
B14: Planned Costs | C14: =+(K19+K28+K34+K41)*(1+Settings!$C$6)+C13*Settings!$C$3 -> 3,309.00 | D14: FC Costs | E14: =+(L19+L28+L34+L41)*(1+Settings!$C$6)+E13*Settings!$C$3 -> 2,353.00 | F14: Actual Costs | G14: =+(M19+M28+M34+M41)*(1+Settings!$C$7)+G13*Settings!$C$3 -> 1,552.50
B15: Planned Revenue | C15: =+(N19+N28+N34+N41)*(1+Settings!$C$7)+C13*Settings!$C$4 -> 3,195.00 | D15: FC Revenue | E15: =+(O19+O28+O34+O41)*(1+Settings!$C$7)+E13*Settings!$C$4 -> 2,396.25 | F15: Actual Revenue | G15: =+(P19+P28+P34+P41)*(1+Settings!$C$7)+G13*Settings!$C$4 -> 1,597.50
B17: Milestone/Task | C17: Responsible | D17: B Start | E17: B End | F17: FC/A Start | G17: FC/A End | H17: B Hours | I17: FC Hours | J17: A Hours | K17: B Costs | L17: FC Costs | M17: A Costs | N17: B Revenue | O17: FC Revenue | P17: A Revenue | R17: W1 | S17: W2 | T17: W3 | U17: W4 | V17: W5 | W17: W6 | X17: W7 | Y17: W8 | Z17: W9 | AA17: W10 | AB17: W11 | AC17: W12 | AD17: W13 | AE17: W14 | AF17: W15 | AG17: W16 | AH17: W17 | AI17: W18 | AJ17: W19 | AK17: W20 | AL17: W21 | AM17: W22 | AN17: W23 | AO17: W24 | AP17: W25 | AQ17: W26 | AR17: W27 | AS17: W28 | AT17: W29 | AU17: W30 | AV17: W31 | AW17: W32 | AX17: W33 | AY17: W34 | AZ17: W35 | BA17: W36 | BB17: W37 | BC17: W38 | BD17: W39 | BE17: W40 | BF17: W41 | BG17: W42 | BH17: W43 | BI17: W44 | BJ17: W45 | BK17: W46 | BL17: W47 | BM17: W48 | BN17: W49 | BO17: W50 | BP17: W51 | BQ17: W52 | BR17: W53 | BS17: W54
B19: Milestone 1 | D19: 2023-02-01 | E19: 2023-02-05 | F19: =+D19 -> 2023-02-01 | G19: =+E19 -> 2023-02-05 | H19: =+SUM(H20:H27) -> 20 | I19: =+SUM(I20:I27) -> 15 | J19: 10 | K19: 100 | L19: 100 | M19: 50 | N19: 100 | O19: 75 | P19: 50
B20: Task 1
B21: Task 2 | K21: 100 | N21: 100
B22: Task 3 | C22: Name 2 | H22: 20 | I22: 15 | J22: 10 | L22: 100
B23: Task 4 | M23: 50 | O23: 75
B24: Task 5
B25: Task 6 | P25: 50
B26: Task 7
B28: Milestone 2 | F28: =+D28 -> 00:00:00 | G28: =+E28 -> 00:00:00 | H28: =+SUM(H29:H33) -> 0 | I28: =+SUM(I29:I33) -> 0 | J28: 0 | K28: 200 | L28: 0 | M28: 0 | N28: 0 | O28: 0 | P28: 0
B29: Task 1
B30: Task 2 | K30: 200
B31: Task 3
B32: Task 4
B34: Milestone 3 | F34: =+D34 -> 00:00:00 | G34: =+E34 -> 00:00:00 | H34: =+SUM(H35:H40) -> 0 | I34: =+SUM(I35:I40) -> 0 | J34: 0 | K34: 0 | L34: 0 | M34: 0 | N34: 0 | O34: 0 | P34: 0
B35: Task 1
B36: Task 2
B37: Task 3
B38: Task 4
B39: Task 5
B41: Milestone 3 | F41: =+D41 -> 00:00:00 | G41: =+E41 -> 00:00:00 | H41: =+SUM(H42:H47) -> 0 | I41: =+SUM(I42:I47) -> 0 | J41: 0 | K41: 0 | L41: 0 | M41: 0 | N41: 0 | O41: 0 | P41: 0
B42: Task 1
B43: Task 2
B44: Task 3
B45: Task 4
B46: Task 5

Sheet Project 2
B2: Name
B3: Description
B4: Responsible
B5: Receiver
B6: Progress | C6: =+IF(NOW()-E11<0, 0, IF((E12-E11)/(NOW()-E11)>1, 1, (E12-E11)/(NOW()-E11))) -> 0% | E6: =+IF(NOW()-C11<0, 0, IF((C12-C11)/(NOW()-C11)>1, 1, (C12-C11)/(NOW()-C11))) -> 0%
B7: Status | C7: Active
B9: Planned Profit | C9: =+C15-C14 -> 0 | D9: FC Profit | E9: =+E15-E14 -> 0 | F9: Actual Profi | G9: =+G15-G14 -> 0
B11: Planned Start | C11: =+D19 -> 2023-02-01 | D11: =+F17 -> FC/A Start | E11: =+F19 -> 2023-02-01
B12: Planned End | C12: =+E41 -> 00:00:00 | D12: =+G17 -> FC/A End | E12: =+G41 -> 00:00:00
B13: Planned Hours | C13: =+H19+H28+H34+H41 -> 0 | D13: FC Hours | E13: =+I19+I28+I34+I41 -> 0 | F13: Actual Hours | G13: =+J19+J28+J34+J41 -> 0
B14: Planned Costs | C14: =+(K19+K28+K34+K41)*(1+Settings!$C$6)+C13*Settings!$C$3 -> 0 | D14: FC Costs | E14: =+(L19+L28+L34+L41)*(1+Settings!$C$6)+E13*Settings!$C$3 -> 0 | F14: Actual Costs | G14: =+(M19+M28+M34+M41)*(1+Settings!$C$7)+G13*Settings!$C$3 -> 0
B15: Planned Revenue | C15: =+(N19+N28+N34+N41)*(1+Settings!$C$7)+C13*Settings!$C$4 -> 0 | D15: FC Revenue | E15: =+(O19+O28+O34+O41)*(1+Settings!$C$7)+E13*Settings!$C$4 -> 0 | F15: Actual Revenue | G15: =+(P19+P28+P34+P41)*(1+Settings!$C$7)+G13*Settings!$C$4 -> 0
B17: Milestone/Task | C17: Responsible | D17: B Start | E17: B End | F17: FC/A Start | G17: FC/A End | H17: B Hours | I17: FC Hours | J17: A Hours | K17: B Costs | L17: FC Costs | M17: A Costs | N17: B Revenue | O17: FC Revenue | P17: A Revenue | R17: W1 | S17: W2 | T17: W3 | U17: W4 | V17: W5 | W17: W6 | X17: W7 | Y17: W8 | Z17: W9 | AA17: W10 | AB17: W11 | AC17: W12 | AD17: W13 | AE17: W14 | AF17: W15 | AG17: W16 | AH17: W17 | AI17: W18 | AJ17: W19 | AK17: W20 | AL17: W21 | AM17: W22 | AN17: W23 | AO17: W24 | AP17: W25 | AQ17: W26 | AR17: W27 | AS17: W28 | AT17: W29 | AU17: W30 | AV17: W31 | AW17: W32 | AX17: W33 | AY17: W34 | AZ17: W35 | BA17: W36 | BB17: W37 | BC17: W38 | BD17: W39 | BE17: W40 | BF17: W41 | BG17: W42 | BH17: W43 | BI17: W44 | BJ17: W45 | BK17: W46 | BL17: W47 | BM17: W48 | BN17: W49 | BO17: W50 | BP17: W51 | BQ17: W52 | BR17: W53 | BS17: W54
B19: Milestone 1 | D19: 2023-02-01 | E19: 2023-02-05 | F19: =+D19 -> 2023-02-01 | G19: =+E19 -> 2023-02-05 | H19: =+SUM(H20:H27) -> 0 | I19: =+SUM(I20:I27) -> 0 | J19: 0 | K19: 0 | L19: 0 | M19: 0 | N19: 0 | O19: 0 | P19: 0
B20: Task 1
B21: Task 2
B22: Task 3
B23: Task 4
B24: Task 5
B25: Task 6
B26: Task 7
B28: Milestone 2 | F28: =+D28 -> 00:00:00 | G28: =+E28 -> 00:00:00 | H28: =+SUM(H29:H33) -> 0 | I28: =+SUM(I29:I33) -> 0 | J28: 0 | K28: 0 | L28: 0 | M28: 0 | N28: 0 | O28: 0 | P28: 0
B29: Task 1
B30: Task 2
B31: Task 3
B32: Task 4
B34: Milestone 3 | F34: =+D34 -> 00:00:00 | G34: =+E34 -> 00:00:00 | H34: =+SUM(H35:H40) -> 0 | I34: =+SUM(I35:I40) -> 0 | J34: 0 | K34: 0 | L34: 0 | M34: 0 | N34: 0 | O34: 0 | P34: 0
B35: Task 1
B36: Task 2
B37: Task 3
B38: Task 4
B39: Task 5
B41: Milestone 3 | F41: =+D41 -> 00:00:00 | G41: =+E41 -> 00:00:00 | H41: =+SUM(H42:H47) -> 0 | I41: =+SUM(I42:I47) -> 0 | J41: 0 | K41: 0 | L41: 0 | M41: 0 | N41: 0 | O41: 0 | P41: 0
B42: Task 1
B43: Task 2
B44: Task 3
B45: Task 4
B46: Task 5

Sheet Project 3
B2: Name
B3: Description
B4: Responsible
B5: Receiver
B6: Progress | C6: =+IF(NOW()-E11<0, 0, IF((E12-E11)/(NOW()-E11)>1, 1, (E12-E11)/(NOW()-E11))) -> 0% | E6: =+IF(NOW()-C11<0, 0, IF((C12-C11)/(NOW()-C11)>1, 1, (C12-C11)/(NOW()-C11))) -> 0%
B7: Status | C7: Active
B9: Planned Profit | C9: =+C15-C14 -> 0 | D9: FC Profit | E9: =+E15-E14 -> 0 | F9: Actual Profi | G9: =+G15-G14 -> 0
B11: Planned Start | C11: =+D19 -> 2023-02-01 | D11: =+F17 -> FC/A Start | E11: =+F19 -> 2023-02-01
B12: Planned End | C12: =+E41 -> 00:00:00 | D12: =+G17 -> FC/A End | E12: =+G41 -> 00:00:00
B13: Planned Hours | C13: =+H19+H28+H34+H41 -> 0 | D13: FC Hours | E13: =+I19+I28+I34+I41 -> 0 | F13: Actual Hours | G13: =+J19+J28+J34+J41 -> 0
B14: Planned Costs | C14: =+(K19+K28+K34+K41)*(1+Settings!$C$6)+C13*Settings!$C$3 -> 0 | D14: FC Costs | E14: =+(L19+L28+L34+L41)*(1+Settings!$C$6)+E13*Settings!$C$3 -> 0 | F14: Actual Costs | G14: =+(M19+M28+M34+M41)*(1+Settings!$C$7)+G13*Settings!$C$3 -> 0
B15: Planned Revenue | C15: =+(N19+N28+N34+N41)*(1+Settings!$C$7)+C13*Settings!$C$4 -> 0 | D15: FC Revenue | E15: =+(O19+O28+O34+O41)*(1+Settings!$C$7)+E13*Settings!$C$4 -> 0 | F15: Actual Revenue | G15: =+(P19+P28+P34+P41)*(1+Settings!$C$7)+G13*Settings!$C$4 -> 0
B17: Milestone/Task | C17: Responsible | D17: B Start | E17: B End | F17: FC/A Start | G17: FC/A End | H17: B Hours | I17: FC Hours | J17: A Hours | K17: B Costs | L17: FC Costs | M17: A Costs | N17: B Revenue | O17: FC Revenue | P17: A Revenue | R17: W1 | S17: W2 | T17: W3 | U17: W4 | V17: W5 | W17: W6 | X17: W7 | Y17: W8 | Z17: W9 | AA17: W10 | AB17: W11 | AC17: W12 | AD17: W13 | AE17: W14 | AF17: W15 | AG17: W16 | AH17: W17 | AI17: W18 | AJ17: W19 | AK17: W20 | AL17: W21 | AM17: W22 | AN17: W23 | AO17: W24 | AP17: W25 | AQ17: W26 | AR17: W27 | AS17: W28 | AT17: W29 | AU17: W30 | AV17: W31 | AW17: W32 | AX17: W33 | AY17: W34 | AZ17: W35 | BA17: W36 | BB17: W37 | BC17: W38 | BD17: W39 | BE17: W40 | BF17: W41 | BG17: W42 | BH17: W43 | BI17: W44 | BJ17: W45 | BK17: W46 | BL17: W47 | BM17: W48 | BN17: W49 | BO17: W50 | BP17: W51 | BQ17: W52 | BR17: W53 | BS17: W54
B19: Milestone 1 | D19: 2023-02-01 | E19: 2023-02-05 | F19: =+D19 -> 2023-02-01 | G19: =+E19 -> 2023-02-05 | H19: =+SUM(H20:H27) -> 0 | I19: =+SUM(I20:I27) -> 0 | J19: 0 | K19: 0 | L19: 0 | M19: 0 | N19: 0 | O19: 0 | P19: 0
B20: Task 1
B21: Task 2
B22: Task 3
B23: Task 4
B24: Task 5
B25: Task 6
B26: Task 7
B28: Milestone 2 | F28: =+D28 -> 00:00:00 | G28: =+E28 -> 00:00:00 | H28: =+SUM(H29:H33) -> 0 | I28: =+SUM(I29:I33) -> 0 | J28: 0 | K28: 0 | L28: 0 | M28: 0 | N28: 0 | O28: 0 | P28: 0
B29: Task 1
B30: Task 2
B31: Task 3
B32: Task 4
B34: Milestone 3 | F34: =+D34 -> 00:00:00 | G34: =+E34 -> 00:00:00 | H34: =+SUM(H35:H40) -> 0 | I34: =+SUM(I35:I40) -> 0 | J34: 0 | K34: 0 | L34: 0 | M34: 0 | N34: 0 | O34: 0 | P34: 0
B35: Task 1
B36: Task 2
B37: Task 3
B38: Task 4
B39: Task 5
B41: Milestone 3 | F41: =+D41 -> 00:00:00 | G41: =+E41 -> 00:00:00 | H41: =+SUM(H42:H47) -> 0 | I41: =+SUM(I42:I47) -> 0 | J41: 0 | K41: 0 | L41: 0 | M41: 0 | N41: 0 | O41: 0 | P41: 0
B42: Task 1
B43: Task 2
B44: Task 3
B45: Task 4
B46: Task 5

Sheet Project 4
B2: Name
B3: Description
B4: Responsible
B5: Receiver
B6: Progress | C6: =+IF(NOW()-E11<0, 0, IF((E12-E11)/(NOW()-E11)>1, 1, (E12-E11)/(NOW()-E11))) -> 0% | E6: =+IF(NOW()-C11<0, 0, IF((C12-C11)/(NOW()-C11)>1, 1, (C12-C11)/(NOW()-C11))) -> 0%
B7: Status | C7: Active
B9: Planned Profit | C9: =+C15-C14 -> 0 | D9: FC Profit | E9: =+E15-E14 -> 0 | F9: Actual Profi | G9: =+G15-G14 -> 0
B11: Planned Start | C11: =+D19 -> 2023-02-01 | D11: =+F17 -> FC/A Start | E11: =+F19 -> 2023-02-01
B12: Planned End | C12: =+E41 -> 00:00:00 | D12: =+G17 -> FC/A End | E12: =+G41 -> 00:00:00
B13: Planned Hours | C13: =+H19+H28+H34+H41 -> 0 | D13: FC Hours | E13: =+I19+I28+I34+I41 -> 0 | F13: Actual Hours | G13: =+J19+J28+J34+J41 -> 0
B14: Planned Costs | C14: =+(K19+K28+K34+K41)*(1+Settings!$C$6)+C13*Settings!$C$3 -> 0 | D14: FC Costs | E14: =+(L19+L28+L34+L41)*(1+Settings!$C$6)+E13*Settings!$C$3 -> 0 | F14: Actual Costs | G14: =+(M19+M28+M34+M41)*(1+Settings!$C$7)+G13*Settings!$C$3 -> 0
B15: Planned Revenue | C15: =+(N19+N28+N34+N41)*(1+Settings!$C$7)+C13*Settings!$C$4 -> 0 | D15: FC Revenue | E15: =+(O19+O28+O34+O41)*(1+Settings!$C$7)+E13*Settings!$C$4 -> 0 | F15: Actual Revenue | G15: =+(P19+P28+P34+P41)*(1+Settings!$C$7)+G13*Settings!$C$4 -> 0
B17: Milestone/Task | C17: Responsible | D17: B Start | E17: B End | F17: FC/A Start | G17: FC/A End | H17: B Hours | I17: FC Hours | J17: A Hours | K17: B Costs | L17: FC Costs | M17: A Costs | N17: B Revenue | O17: FC Revenue | P17: A Revenue | R17: W1 | S17: W2 | T17: W3 | U17: W4 | V17: W5 | W17: W6 | X17: W7 | Y17: W8 | Z17: W9 | AA17: W10 | AB17: W11 | AC17: W12 | AD17: W13 | AE17: W14 | AF17: W15 | AG17: W16 | AH17: W17 | AI17: W18 | AJ17: W19 | AK17: W20 | AL17: W21 | AM17: W22 | AN17: W23 | AO17: W24 | AP17: W25 | AQ17: W26 | AR17: W27 | AS17: W28 | AT17: W29 | AU17: W30 | AV17: W31 | AW17: W32 | AX17: W33 | AY17: W34 | AZ17: W35 | BA17: W36 | BB17: W37 | BC17: W38 | BD17: W39 | BE17: W40 | BF17: W41 | BG17: W42 | BH17: W43 | BI17: W44 | BJ17: W45 | BK17: W46 | BL17: W47 | BM17: W48 | BN17: W49 | BO17: W50 | BP17: W51 | BQ17: W52 | BR17: W53 | BS17: W54
B19: Milestone 1 | D19: 2023-02-01 | E19: 2023-02-05 | F19: =+D19 -> 2023-02-01 | G19: =+E19 -> 2023-02-05 | H19: =+SUM(H20:H27) -> 0 | I19: =+SUM(I20:I27) -> 0 | J19: 0 | K19: 0 | L19: 0 | M19: 0 | N19: 0 | O19: 0 | P19: 0
B20: Task 1
B21: Task 2
B22: Task 3
B23: Task 4
B24: Task 5
B25: Task 6
B26: Task 7
B28: Milestone 2 | F28: =+D28 -> 00:00:00 | G28: =+E28 -> 00:00:00 | H28: =+SUM(H29:H33) -> 0 | I28: =+SUM(I29:I33) -> 0 | J28: 0 | K28: 0 | L28: 0 | M28: 0 | N28: 0 | O28: 0 | P28: 0
B29: Task 1
B30: Task 2
B31: Task 3
B32: Task 4
B34: Milestone 3 | F34: =+D34 -> 00:00:00 | G34: =+E34 -> 00:00:00 | H34: =+SUM(H35:H40) -> 0 | I34: =+SUM(I35:I40) -> 0 | J34: 0 | K34: 0 | L34: 0 | M34: 0 | N34: 0 | O34: 0 | P34: 0
B35: Task 1
B36: Task 2
B37: Task 3
B38: Task 4
B39: Task 5
B41: Milestone 3 | F41: =+D41 -> 00:00:00 | G41: =+E41 -> 00:00:00 | H41: =+SUM(H42:H47) -> 0 | I41: =+SUM(I42:I47) -> 0 | J41: 0 | K41: 0 | L41: 0 | M41: 0 | N41: 0 | O41: 0 | P41: 0
B42: Task 1
B43: Task 2
B44: Task 3
B45: Task 4
B46: Task 5

Sheet Project 5
B2: Name
B3: Description
B4: Responsible
B5: Receiver
B6: Progress | C6: =+IF(NOW()-E11<0, 0, IF((E12-E11)/(NOW()-E11)>1, 1, (E12-E11)/(NOW()-E11))) -> 0% | E6: =+IF(NOW()-C11<0, 0, IF((C12-C11)/(NOW()-C11)>1, 1, (C12-C11)/(NOW()-C11))) -> 0%
B7: Status | C7: Active
B9: Planned Profit | C9: =+C15-C14 -> 0 | D9: FC Profit | E9: =+E15-E14 -> 0 | F9: Actual Profi | G9: =+G15-G14 -> 0
B11: Planned Start | C11: =+D19 -> 2023-02-01 | D11: =+F17 -> FC/A Start | E11: =+F19 -> 2023-02-01
B12: Planned End | C12: =+E41 -> 00:00:00 | D12: =+G17 -> FC/A End | E12: =+G41 -> 00:00:00
B13: Planned Hours | C13: =+H19+H28+H34+H41 -> 0 | D13: FC Hours | E13: =+I19+I28+I34+I41 -> 0 | F13: Actual Hours | G13: =+J19+J28+J34+J41 -> 0
B14: Planned Costs | C14: =+(K19+K28+K34+K41)*(1+Settings!$C$6)+C13*Settings!$C$3 -> 0 | D14: FC Costs | E14: =+(L19+L28+L34+L41)*(1+Settings!$C$6)+E13*Settings!$C$3 -> 0 | F14: Actual Costs | G14: =+(M19+M28+M34+M41)*(1+Settings!$C$7)+G13*Settings!$C$3 -> 0
B15: Planned Revenue | C15: =+(N19+N28+N34+N41)*(1+Settings!$C$7)+C13*Settings!$C$4 -> 0 | D15: FC Revenue | E15: =+(O19+O28+O34+O41)*(1+Settings!$C$7)+E13*Settings!$C$4 -> 0 | F15: Actual Revenue | G15: =+(P19+P28+P34+P41)*(1+Settings!$C$7)+G13*Settings!$C$4 -> 0
B17: Milestone/Task | C17: Responsible | D17: B Start | E17: B End | F17: FC/A Start | G17: FC/A End | H17: B Hours | I17: FC Hours | J17: A Hours | K17: B Costs | L17: FC Costs | M17: A Costs | N17: B Revenue | O17: FC Revenue | P17: A Revenue | R17: W1 | S17: W2 | T17: W3 | U17: W4 | V17: W5 | W17: W6 | X17: W7 | Y17: W8 | Z17: W9 | AA17: W10 | AB17: W11 | AC17: W12 | AD17: W13 | AE17: W14 | AF17: W15 | AG17: W16 | AH17: W17 | AI17: W18 | AJ17: W19 | AK17: W20 | AL17: W21 | AM17: W22 | AN17: W23 | AO17: W24 | AP17: W25 | AQ17: W26 | AR17: W27 | AS17: W28 | AT17: W29 | AU17: W30 | AV17: W31 | AW17: W32 | AX17: W33 | AY17: W34 | AZ17: W35 | BA17: W36 | BB17: W37 | BC17: W38 | BD17: W39 | BE17: W40 | BF17: W41 | BG17: W42 | BH17: W43 | BI17: W44 | BJ17: W45 | BK17: W46 | BL17: W47 | BM17: W48 | BN17: W49 | BO17: W50 | BP17: W51 | BQ17: W52 | BR17: W53 | BS17: W54
B19: Milestone 1 | D19: 2023-02-01 | E19: 2023-02-05 | F19: =+D19 -> 2023-02-01 | G19: =+E19 -> 2023-02-05 | H19: =+SUM(H20:H27) -> 0 | I19: =+SUM(I20:I27) -> 0 | J19: 0 | K19: 0 | L19: 0 | M19: 0 | N19: 0 | O19: 0 | P19: 0
B20: Task 1
B21: Task 2
B22: Task 3
B23: Task 4
B24: Task 5
B25: Task 6
B26: Task 7
B28: Milestone 2 | F28: =+D28 -> 00:00:00 | G28: =+E28 -> 00:00:00 | H28: =+SUM(H29:H33) -> 0 | I28: =+SUM(I29:I33) -> 0 | J28: 0 | K28: 0 | L28: 0 | M28: 0 | N28: 0 | O28: 0 | P28: 0
B29: Task 1
B30: Task 2
B31: Task 3
B32: Task 4
B34: Milestone 3 | F34: =+D34 -> 00:00:00 | G34: =+E34 -> 00:00:00 | H34: =+SUM(H35:H40) -> 0 | I34: =+SUM(I35:I40) -> 0 | J34: 0 | K34: 0 | L34: 0 | M34: 0 | N34: 0 | O34: 0 | P34: 0
B35: Task 1
B36: Task 2
B37: Task 3
B38: Task 4
B39: Task 5
B41: Milestone 3 | F41: =+D41 -> 00:00:00 | G41: =+E41 -> 00:00:00 | H41: =+SUM(H42:H47) -> 0 | I41: =+SUM(I42:I47) -> 0 | J41: 0 | K41: 0 | L41: 0 | M41: 0 | N41: 0 | O41: 0 | P41: 0
B42: Task 1
B43: Task 2
B44: Task 3
B45: Task 4
B46: Task 5

Sheet Project 6
B2: Name
B3: Description
B4: Responsible
B5: Receiver
B6: Progress | C6: =+IF(NOW()-E11<0, 0, IF((E12-E11)/(NOW()-E11)>1, 1, (E12-E11)/(NOW()-E11))) -> 0% | E6: =+IF(NOW()-C11<0, 0, IF((C12-C11)/(NOW()-C11)>1, 1, (C12-C11)/(NOW()-C11))) -> 0%
B7: Status | C7: Active
B9: Planned Profit | C9: =+C15-C14 -> 0 | D9: FC Profit | E9: =+E15-E14 -> 0 | F9: Actual Profi | G9: =+G15-G14 -> 0
B11: Planned Start | C11: =+D19 -> 2023-02-01 | D11: =+F17 -> FC/A Start | E11: =+F19 -> 2023-02-01
B12: Planned End | C12: =+E41 -> 00:00:00 | D12: =+G17 -> FC/A End | E12: =+G41 -> 00:00:00
B13: Planned Hours | C13: =+H19+H28+H34+H41 -> 0 | D13: FC Hours | E13: =+I19+I28+I34+I41 -> 0 | F13: Actual Hours | G13: =+J19+J28+J34+J41 -> 0
B14: Planned Costs | C14: =+(K19+K28+K34+K41)*(1+Settings!$C$6)+C13*Settings!$C$3 -> 0 | D14: FC Costs | E14: =+(L19+L28+L34+L41)*(1+Settings!$C$6)+E13*Settings!$C$3 -> 0 | F14: Actual Costs | G14: =+(M19+M28+M34+M41)*(1+Settings!$C$7)+G13*Settings!$C$3 -> 0
B15: Planned Revenue | C15: =+(N19+N28+N34+N41)*(1+Settings!$C$7)+C13*Settings!$C$4 -> 0 | D15: FC Revenue | E15: =+(O19+O28+O34+O41)*(1+Settings!$C$7)+E13*Settings!$C$4 -> 0 | F15: Actual Revenue | G15: =+(P19+P28+P34+P41)*(1+Settings!$C$7)+G13*Settings!$C$4 -> 0
B17: Milestone/Task | C17: Responsible | D17: B Start | E17: B End | F17: FC/A Start | G17: FC/A End | H17: B Hours | I17: FC Hours | J17: A Hours | K17: B Costs | L17: FC Costs | M17: A Costs | N17: B Revenue | O17: FC Revenue | P17: A Revenue | R17: W1 | S17: W2 | T17: W3 | U17: W4 | V17: W5 | W17: W6 | X17: W7 | Y17: W8 | Z17: W9 | AA17: W10 | AB17: W11 | AC17: W12 | AD17: W13 | AE17: W14 | AF17: W15 | AG17: W16 | AH17: W17 | AI17: W18 | AJ17: W19 | AK17: W20 | AL17: W21 | AM17: W22 | AN17: W23 | AO17: W24 | AP17: W25 | AQ17: W26 | AR17: W27 | AS17: W28 | AT17: W29 | AU17: W30 | AV17: W31 | AW17: W32 | AX17: W33 | AY17: W34 | AZ17: W35 | BA17: W36 | BB17: W37 | BC17: W38 | BD17: W39 | BE17: W40 | BF17: W41 | BG17: W42 | BH17: W43 | BI17: W44 | BJ17: W45 | BK17: W46 | BL17: W47 | BM17: W48 | BN17: W49 | BO17: W50 | BP17: W51 | BQ17: W52 | BR17: W53 | BS17: W54
B19: Milestone 1 | D19: 2023-02-01 | E19: 2023-02-05 | F19: =+D19 -> 2023-02-01 | G19: =+E19 -> 2023-02-05 | H19: =+SUM(H20:H27) -> 0 | I19: =+SUM(I20:I27) -> 0 | J19: 0 | K19: 0 | L19: 0 | M19: 0 | N19: 0 | O19: 0 | P19: 0
B20: Task 1
B21: Task 2
B22: Task 3
B23: Task 4
B24: Task 5
B25: Task 6
B26: Task 7
B28: Milestone 2 | F28: =+D28 -> 00:00:00 | G28: =+E28 -> 00:00:00 | H28: =+SUM(H29:H33) -> 0 | I28: =+SUM(I29:I33) -> 0 | J28: 0 | K28: 0 | L28: 0 | M28: 0 | N28: 0 | O28: 0 | P28: 0
B29: Task 1
B30: Task 2
B31: Task 3
B32: Task 4
B34: Milestone 3 | F34: =+D34 -> 00:00:00 | G34: =+E34 -> 00:00:00 | H34: =+SUM(H35:H40) -> 0 | I34: =+SUM(I35:I40) -> 0 | J34: 0 | K34: 0 | L34: 0 | M34: 0 | N34: 0 | O34: 0 | P34: 0
B35: Task 1
B36: Task 2
B37: Task 3
B38: Task 4
B39: Task 5
B41: Milestone 3 | F41: =+D41 -> 00:00:00 | G41: =+E41 -> 00:00:00 | H41: =+SUM(H42:H47) -> 0 | I41: =+SUM(I42:I47) -> 0 | J41: 0 | K41: 0 | L41: 0 | M41: 0 | N41: 0 | O41: 0 | P41: 0
B42: Task 1
B43: Task 2
B44: Task 3
B45: Task 4
B46: Task 5

Sheet Project 7
B2: Name
B3: Description
B4: Responsible
B5: Receiver
B6: Progress | C6: =+IF(NOW()-E11<0, 0, IF((E12-E11)/(NOW()-E11)>1, 1, (E12-E11)/(NOW()-E11))) -> 0% | E6: =+IF(NOW()-C11<0, 0, IF((C12-C11)/(NOW()-C11)>1, 1, (C12-C11)/(NOW()-C11))) -> 0%
B7: Status | C7: Active
B9: Planned Profit | C9: =+C15-C14 -> 0 | D9: FC Profit | E9: =+E15-E14 -> 0 | F9: Actual Profi | G9: =+G15-G14 -> 0
B11: Planned Start | C11: =+D19 -> 2023-02-01 | D11: =+F17 -> FC/A Start | E11: =+F19 -> 2023-02-01
B12: Planned End | C12: =+E41 -> 00:00:00 | D12: =+G17 -> FC/A End | E12: =+G41 -> 00:00:00
B13: Planned Hours | C13: =+H19+H28+H34+H41 -> 0 | D13: FC Hours | E13: =+I19+I28+I34+I41 -> 0 | F13: Actual Hours | G13: =+J19+J28+J34+J41 -> 0
B14: Planned Costs | C14: =+(K19+K28+K34+K41)*(1+Settings!$C$6)+C13*Settings!$C$3 -> 0 | D14: FC Costs | E14: =+(L19+L28+L34+L41)*(1+Settings!$C$6)+E13*Settings!$C$3 -> 0 | F14: Actual Costs | G14: =+(M19+M28+M34+M41)*(1+Settings!$C$7)+G13*Settings!$C$3 -> 0
B15: Planned Revenue | C15: =+(N19+N28+N34+N41)*(1+Settings!$C$7)+C13*Settings!$C$4 -> 0 | D15: FC Revenue | E15: =+(O19+O28+O34+O41)*(1+Settings!$C$7)+E13*Settings!$C$4 -> 0 | F15: Actual Revenue | G15: =+(P19+P28+P34+P41)*(1+Settings!$C$7)+G13*Settings!$C$4 -> 0
B17: Milestone/Task | C17: Responsible | D17: B Start | E17: B End | F17: FC/A Start | G17: FC/A End | H17: B Hours | I17: FC Hours | J17: A Hours | K17: B Costs | L17: FC Costs | M17: A Costs | N17: B Revenue | O17: FC Revenue | P17: A Revenue | R17: W1 | S17: W2 | T17: W3 | U17: W4 | V17: W5 | W17: W6 | X17: W7 | Y17: W8 | Z17: W9 | AA17: W10 | AB17: W11 | AC17: W12 | AD17: W13 | AE17: W14 | AF17: W15 | AG17: W16 | AH17: W17 | AI17: W18 | AJ17: W19 | AK17: W20 | AL17: W21 | AM17: W22 | AN17: W23 | AO17: W24 | AP17: W25 | AQ17: W26 | AR17: W27 | AS17: W28 | AT17: W29 | AU17: W30 | AV17: W31 | AW17: W32 | AX17: W33 | AY17: W34 | AZ17: W35 | BA17: W36 | BB17: W37 | BC17: W38 | BD17: W39 | BE17: W40 | BF17: W41 | BG17: W42 | BH17: W43 | BI17: W44 | BJ17: W45 | BK17: W46 | BL17: W47 | BM17: W48 | BN17: W49 | BO17: W50 | BP17: W51 | BQ17: W52 | BR17: W53 | BS17: W54
B19: Milestone 1 | D19: 2023-02-01 | E19: 2023-02-05 | F19: =+D19 -> 2023-02-01 | G19: =+E19 -> 2023-02-05 | H19: =+SUM(H20:H27) -> 0 | I19: =+SUM(I20:I27) -> 0 | J19: 0 | K19: 0 | L19: 0 | M19: 0 | N19: 0 | O19: 0 | P19: 0
B20: Task 1
B21: Task 2
B22: Task 3
B23: Task 4
B24: Task 5
B25: Task 6
B26: Task 7
B28: Milestone 2 | F28: =+D28 -> 00:00:00 | G28: =+E28 -> 00:00:00 | H28: =+SUM(H29:H33) -> 0 | I28: =+SUM(I29:I33) -> 0 | J28: 0 | K28: 0 | L28: 0 | M28: 0 | N28: 0 | O28: 0 | P28: 0
B29: Task 1
B30: Task 2
B31: Task 3
B32: Task 4
B34: Milestone 3 | F34: =+D34 -> 00:00:00 | G34: =+E34 -> 00:00:00 | H34: =+SUM(H35:H40) -> 0 | I34: =+SUM(I35:I40) -> 0 | J34: 0 | K34: 0 | L34: 0 | M34: 0 | N34: 0 | O34: 0 | P34: 0
B35: Task 1
B36: Task 2
B37: Task 3
B38: Task 4
B39: Task 5
B41: Milestone 3 | F41: =+D41 -> 00:00:00 | G41: =+E41 -> 00:00:00 | H41: =+SUM(H42:H47) -> 0 | I41: =+SUM(I42:I47) -> 0 | J41: 0 | K41: 0 | L41: 0 | M41: 0 | N41: 0 | O41: 0 | P41: 0
B42: Task 1
B43: Task 2
B44: Task 3
B45: Task 4
B46: Task 5

Sheet Project 8
B2: Name
B3: Description
B4: Responsible
B5: Receiver
B6: Progress | C6: =+IF(NOW()-E11<0, 0, IF((E12-E11)/(NOW()-E11)>1, 1, (E12-E11)/(NOW()-E11))) -> 0% | E6: =+IF(NOW()-C11<0, 0, IF((C12-C11)/(NOW()-C11)>1, 1, (C12-C11)/(NOW()-C11))) -> 0%
B7: Status | C7: Active
B9: Planned Profit | C9: =+C15-C14 -> 0 | D9: FC Profit | E9: =+E15-E14 -> 0 | F9: Actual Profi | G9: =+G15-G14 -> 0
B11: Planned Start | C11: =+D19 -> 2023-02-01 | D11: =+F17 -> FC/A Start | E11: =+F19 -> 2023-02-01
B12: Planned End | C12: =+E41 -> 00:00:00 | D12: =+G17 -> FC/A End | E12: =+G41 -> 00:00:00
B13: Planned Hours | C13: =+H19+H28+H34+H41 -> 0 | D13: FC Hours | E13: =+I19+I28+I34+I41 -> 0 | F13: Actual Hours | G13: =+J19+J28+J34+J41 -> 0
B14: Planned Costs | C14: =+(K19+K28+K34+K41)*(1+Settings!$C$6)+C13*Settings!$C$3 -> 0 | D14: FC Costs | E14: =+(L19+L28+L34+L41)*(1+Settings!$C$6)+E13*Settings!$C$3 -> 0 | F14: Actual Costs | G14: =+(M19+M28+M34+M41)*(1+Settings!$C$7)+G13*Settings!$C$3 -> 0
B15: Planned Revenue | C15: =+(N19+N28+N34+N41)*(1+Settings!$C$7)+C13*Settings!$C$4 -> 0 | D15: FC Revenue | E15: =+(O19+O28+O34+O41)*(1+Settings!$C$7)+E13*Settings!$C$4 -> 0 | F15: Actual Revenue | G15: =+(P19+P28+P34+P41)*(1+Settings!$C$7)+G13*Settings!$C$4 -> 0
B17: Milestone/Task | C17: Responsible | D17: B Start | E17: B End | F17: FC/A Start | G17: FC/A End | H17: B Hours | I17: FC Hours | J17: A Hours | K17: B Costs | L17: FC Costs | M17: A Costs | N17: B Revenue | O17: FC Revenue | P17: A Revenue | R17: W1 | S17: W2 | T17: W3 | U17: W4 | V17: W5 | W17: W6 | X17: W7 | Y17: W8 | Z17: W9 | AA17: W10 | AB17: W11 | AC17: W12 | AD17: W13 | AE17: W14 | AF17: W15 | AG17: W16 | AH17: W17 | AI17: W18 | AJ17: W19 | AK17: W20 | AL17: W21 | AM17: W22 | AN17: W23 | AO17: W24 | AP17: W25 | AQ17: W26 | AR17: W27 | AS17: W28 | AT17: W29 | AU17: W30 | AV17: W31 | AW17: W32 | AX17: W33 | AY17: W34 | AZ17: W35 | BA17: W36 | BB17: W37 | BC17: W38 | BD17: W39 | BE17: W40 | BF17: W41 | BG17: W42 | BH17: W43 | BI17: W44 | BJ17: W45 | BK17: W46 | BL17: W47 | BM17: W48 | BN17: W49 | BO17: W50 | BP17: W51 | BQ17: W52 | BR17: W53 | BS17: W54
B19: Milestone 1 | D19: 2023-02-01 | E19: 2023-02-05 | F19: =+D19 -> 2023-02-01 | G19: =+E19 -> 2023-02-05 | H19: =+SUM(H20:H27) -> 0 | I19: =+SUM(I20:I27) -> 0 | J19: 0 | K19: 0 | L19: 0 | M19: 0 | N19: 0 | O19: 0 | P19: 0
B20: Task 1
B21: Task 2
B22: Task 3
B23: Task 4
B24: Task 5
B25: Task 6
B26: Task 7
B28: Milestone 2 | F28: =+D28 -> 00:00:00 | G28: =+E28 -> 00:00:00 | H28: =+SUM(H29:H33) -> 0 | I28: =+SUM(I29:I33) -> 0 | J28: 0 | K28: 0 | L28: 0 | M28: 0 | N28: 0 | O28: 0 | P28: 0
B29: Task 1
B30: Task 2
B31: Task 3
B32: Task 4
B34: Milestone 3 | F34: =+D34 -> 00:00:00 | G34: =+E34 -> 00:00:00 | H34: =+SUM(H35:H40) -> 0 | I34: =+SUM(I35:I40) -> 0 | J34: 0 | K34: 0 | L34: 0 | M34: 0 | N34: 0 | O34: 0 | P34: 0
B35: Task 1
B36: Task 2
B37: Task 3
B38: Task 4
B39: Task 5
B41: Milestone 3 | F41: =+D41 -> 00:00:00 | G41: =+E41 -> 00:00:00 | H41: =+SUM(H42:H47) -> 0 | I41: =+SUM(I42:I47) -> 0 | J41: 0 | K41: 0 | L41: 0 | M41: 0 | N41: 0 | O41: 0 | P41: 0
B42: Task 1
B43: Task 2
B44: Task 3
B45: Task 4
B46: Task 5

Sheet Project 9
B2: Name
B3: Description
B4: Responsible
B5: Receiver
B6: Progress | C6: =+IF(NOW()-E11<0, 0, IF((E12-E11)/(NOW()-E11)>1, 1, (E12-E11)/(NOW()-E11))) -> 0% | E6: =+IF(NOW()-C11<0, 0, IF((C12-C11)/(NOW()-C11)>1, 1, (C12-C11)/(NOW()-C11))) -> 0%
B7: Status | C7: Active
B9: Planned Profit | C9: =+C15-C14 -> 0 | D9: FC Profit | E9: =+E15-E14 -> 0 | F9: Actual Profi | G9: =+G15-G14 -> 0
B11: Planned Start | C11: =+D19 -> 2023-02-01 | D11: =+F17 -> FC/A Start | E11: =+F19 -> 2023-02-01
B12: Planned End | C12: =+E41 -> 00:00:00 | D12: =+G17 -> FC/A End | E12: =+G41 -> 00:00:00
B13: Planned Hours | C13: =+H19+H28+H34+H41 -> 0 | D13: FC Hours | E13: =+I19+I28+I34+I41 -> 0 | F13: Actual Hours | G13: =+J19+J28+J34+J41 -> 0
B14: Planned Costs | C14: =+(K19+K28+K34+K41)*(1+Settings!$C$6)+C13*Settings!$C$3 -> 0 | D14: FC Costs | E14: =+(L19+L28+L34+L41)*(1+Settings!$C$6)+E13*Settings!$C$3 -> 0 | F14: Actual Costs | G14: =+(M19+M28+M34+M41)*(1+Settings!$C$7)+G13*Settings!$C$3 -> 0
B15: Planned Revenue | C15: =+(N19+N28+N34+N41)*(1+Settings!$C$7)+C13*Settings!$C$4 -> 0 | D15: FC Revenue | E15: =+(O19+O28+O34+O41)*(1+Settings!$C$7)+E13*Settings!$C$4 -> 0 | F15: Actual Revenue | G15: =+(P19+P28+P34+P41)*(1+Settings!$C$7)+G13*Settings!$C$4 -> 0
B17: Milestone/Task | C17: Responsible | D17: B Start | E17: B End | F17: FC/A Start | G17: FC/A End | H17: B Hours | I17: FC Hours | J17: A Hours | K17: B Costs | L17: FC Costs | M17: A Costs | N17: B Revenue | O17: FC Revenue | P17: A Revenue | R17: W1 | S17: W2 | T17: W3 | U17: W4 | V17: W5 | W17: W6 | X17: W7 | Y17: W8 | Z17: W9 | AA17: W10 | AB17: W11 | AC17: W12 | AD17: W13 | AE17: W14 | AF17: W15 | AG17: W16 | AH17: W17 | AI17: W18 | AJ17: W19 | AK17: W20 | AL17: W21 | AM17: W22 | AN17: W23 | AO17: W24 | AP17: W25 | AQ17: W26 | AR17: W27 | AS17: W28 | AT17: W29 | AU17: W30 | AV17: W31 | AW17: W32 | AX17: W33 | AY17: W34 | AZ17: W35 | BA17: W36 | BB17: W37 | BC17: W38 | BD17: W39 | BE17: W40 | BF17: W41 | BG17: W42 | BH17: W43 | BI17: W44 | BJ17: W45 | BK17: W46 | BL17: W47 | BM17: W48 | BN17: W49 | BO17: W50 | BP17: W51 | BQ17: W52 | BR17: W53 | BS17: W54
B19: Milestone 1 | D19: 2023-02-01 | E19: 2023-02-05 | F19: =+D19 -> 2023-02-01 | G19: =+E19 -> 2023-02-05 | H19: =+SUM(H20:H27) -> 0 | I19: =+SUM(I20:I27) -> 0 | J19: 0 | K19: 0 | L19: 0 | M19: 0 | N19: 0 | O19: 0 | P19: 0
B20: Task 1
B21: Task 2
B22: Task 3
B23: Task 4
B24: Task 5
B25: Task 6
B26: Task 7
B28: Milestone 2 | F28: =+D28 -> 00:00:00 | G28: =+E28 -> 00:00:00 | H28: =+SUM(H29:H33) -> 0 | I28: =+SUM(I29:I33) -> 0 | J28: 0 | K28: 0 | L28: 0 | M28: 0 | N28: 0 | O28: 0 | P28: 0
B29: Task 1
B30: Task 2
B31: Task 3
B32: Task 4
B34: Milestone 3 | F34: =+D34 -> 00:00:00 | G34: =+E34 -> 00:00:00 | H34: =+SUM(H35:H40) -> 0 | I34: =+SUM(I35:I40) -> 0 | J34: 0 | K34: 0 | L34: 0 | M34: 0 | N34: 0 | O34: 0 | P34: 0
B35: Task 1
B36: Task 2
B37: Task 3
B38: Task 4
B39: Task 5
B41: Milestone 3 | F41: =+D41 -> 00:00:00 | G41: =+E41 -> 00:00:00 | H41: =+SUM(H42:H47) -> 0 | I41: =+SUM(I42:I47) -> 0 | J41: 0 | K41: 0 | L41: 0 | M41: 0 | N41: 0 | O41: 0 | P41: 0
B42: Task 1
B43: Task 2
B44: Task 3
B45: Task 4
B46: Task 5
